Workbook

Sheet Rando
A1: Randonnées Année 2018
A2: Date | B2: Randonnée | D2: Distance | F2: Dénivelé+ | G2: Durée | H2: Participant | J2: Météo
A4: 2018-01-02 | B4: parking, Croix Verpy, La Palud, St André, Les Fromagets, Ret. | D4: 9.3 | F4: 151 | G4: 0.125 | H4: 3
A5: 2018-01-05 | B5: St André, Apremont, Cascade du Pichut, Viallet, Retour | D5: 10.7 | F5: 250 | G5: 0.1319444444 | H5: 5
A6: 2018-01-08 | B6: Les Drouilly, Seloge, Myans, X , Galette ,Les Drouilly | D6: 9.7 | F6: 88 | G6: 0.1180555556 | H6: 6
A7: 2018-01-12 | B7: St André, la Grue, Route du Col, Lachat, lac Froment, Retour | D7: 8.9 | F7: 298 | G7: 0.1118055556 | H7: 6
A8: 2018-01-13 | B8: St André, La Palud, St André | D8: 6.6 | F8: 195 | G8: 0.08333333333 | H8: 2
A9: 1900-01-15 | B9: S Les Deserts d'Entremont, Pointe de Cochette Retour | D9: 7.4 | F9: 250 | G9: 0.125 | H9: 6
A10: 2018-01-19 | B10: ZI,Seloge, Les péllerins, rte d'Apremont, PierreHachée,St André,Ret. | D10: 12.6 | F10: 122 | G10: 0.1520833333 | H10: 4
A11: 2018-01-23 | B11: les Drouilly, Penet, Myans,Lac des peres,Fontanettes ,les Drouilly | D11: 11 | F11: 120 | G11: 0.125 | H11: 7
A12: 2018-01-29 | B12: S P La Feclaz, Les Fermes, X, Col de Pertuiset, La Feclaz | D12: 8.4 | F12: 278 | G12: 0.1666666667 | H12: 8
A13: 2018-02-02 | B13: Blardet, la redoute, chalet Yolande, Les Fontanettes, Ret | D13: 11.5 | F13: 286 | G13: 0.1305555556 | H13: 4
A14: 2018-02-05 | B14: Chignin F1, les Tours, Montlevin, Tormery, Francin, Retour | D14: 10 | F14: 185 | G14: 0.1256944444 | H14: 6
A15: 2018-02-09 | B15: Parking, Ternavet, La Sale, Chataigneraie, Douchet, Lachat, Ret. | D15: 12.2 | F15: 59 | G15: 0.125 | H15: 10
A82: Nombre de Randonnées | C82: =COUNTA(B3:B81) -> 12 | D82: Dont: | F82: =COUNTIF(B3:B101,"S *") -> 2 | G82: en Raquettes | I82: Moyenne générale
A83: Le Plus | C83: =MAX(D3:D81) -> 12.6 | E83: =MAX(F3:F81) -> 298 | G83: =MAX(G3:G81) -> 0.1666666667 | H83: =MAX(H3:H81) -> 10 | I83: =C86/G86/24 -> 3.242576519
A84: Le Moins | C84: =MIN(D3:D81) -> 6.6 | E84: =MIN(F3:F81) -> 59 | G84: =MIN(G3:G81) -> 0.08333333333 | H84: =MIN(H3:H81) -> 2
A85: Moyenne | C85: =AVERAGE(D3:D81) -> 9.858333333 | E85: =AVERAGE(F3:F81) -> 190.1666667 | G85: =AVERAGE(G3:G81) -> 0.1266782407 | H85: =AVERAGE(H3:H81) -> 5.583333333 | I85: =SUM(#REF!) -> 
A86: Cumul | C86: =SUM(D3:D81) -> 118.3 | E86: =SUM(F3:F81) -> 2282 | G86: =SUM(G3:G81) -> 1.520138889
C87: Nombre de Restaurant | F87: =COUNTIF(B3:B101,"R *") -> 0 | G87: Nombre de Pique Nique | J87: =COUNTIF(B3:B101,"*P *") -> 1

Sheet Sommaire
A1: Prénoms | B1: Alix | C1: André | D1: Andrée | E1: Bernard | F1: Christiane | G1: Dany | H1: Gianna | I1: Gisèle | J1: Marie | K1: Yolande | L1: Chris2. | M1: Michel P | N1: Marie-F. | O1: Josiane | P1: Michel T | Q1: Chantal A | R1: Marc V | S1: Chantal C | T1: Marc M | U1: Anne Marie | V1: Henri D | W1: Total
A2: 2018
A4: 2018-01-02 | E4: 1 | I4: 1 | J4: 1 | W4: =SUM(B4:V4) -> 3
A5: 2018-01-05 | E5: 1 | F5: 1 | I5: 1 | J5: 1 | K5: 1 | W5: =SUM(B5:V5) -> 5
A6: 2018-01-08 | C6: 1 | D6: 1 | E6: 1 | I6: 1 | J6: 1 | K6: 1 | W6: 6
A7: 2018-01-12 | D7: 1 | E7: 1 | G7: 1 | K7: 1 | O7: 1 | Q7: 1 | W7: 6
A8: 2018-01-13 | I8: 1 | J8: 1 | W8: 2
A9: 2018-01-15 | B9: 1 | D9: 1 | E9: 1 | I9: 1 | J9: 1 | K9: 1 | W9: 6
A10: 2018-01-19 | E10: 1 | I10: 1 | J10: 1 | K10: 1 | W10: 4
A11: 2018-01-23 | C11: 1 | D11: 1 | E11: 1 | G11: 1 | H11: 1 | J11: 1 | K11: 1 | W11: 7
A12: 2018-01-29 | B12: 1 | C12: 1 | D12: 1 | E12: 1 | J12: 1 | K12: 1 | T12: 1 | U12: 1 | W12: 8
A13: 2018-02-02 | E13: 1 | G13: 1 | J13: 1 | Q13: 1 | W13: 4
A14: 2018-02-05 | E14: 1 | G14: 1 | J14: 1 | K14: 1 | T14: 1 | U14: 1 | W14: 6
A15: 2018-02-09 | D15: 1 | E15: 1 | F15: 1 | G15: 1 | H15: 1 | I15: 1 | J15: 1 | K15: 1 | O15: 1 | S15: 1 | V15: 1 | W15: 11
W16: 0
W17: 0
W18: 0
W19: 0
W20: 0
W21: 0
W22: 0
W23: 0
W24: 0
W25: 0
W26: 0
W27: 0
W28: 0
W29: 0
W30: 0
W31: 0
W32: 0
W33: 0
W34: 0
W35: 0
W36: 0
W37: 0
W38: 0
W39: 0
W40: 0
W41: 0
W42: 0
W43: 0
W44: 0
W45: 0
W46: 0
W47: 0
W48: 0
W49: 0
W50: 0
W51: 0
W52: 0
W53: 0
W54: 0
W55: 0
W56: 0
W57: 0
W58: 0
W59: 0
W60: 0
W61: 0
W62: 0
W63: 0
W64: 0
W65: 0
W66: 0
W67: 0
W68: 0
W69: =SUM(B69:V69) -> 0
W70: 0
W71: 0
W72: 0
W73: 0
W74: 0
W75: 0
W76: 0
W77: 0
W78: 0
W79: 0
W80: 0
W81: 0
W82: 0
W83: 0
W84: 0
W85: 0
W86: 0
W87: 0
W88: 0
A89: Total | Q89: Totaux | W89: =SUM(W4:W88) -> 68
A90: Total | B90: =SUM(B4:B88) -> 2 | C90: =SUM(C4:C88) -> 3 | D90: =SUM(D4:D88) -> 6 | E90: =SUM(E4:E88) -> 11 | F90: =SUM(F4:F88) -> 2 | G90: =SUM(G4:G88) -> 5 | H90: 2 | I90: 7 | J90: 11 | K90: 9 | L90: 0 | M90: 0 | N90: 0 | O90: 2 | P90: 0 | Q90: 2 | R90: 0 | S90: 1 | T90: 2 | U90: 2 | V90: 1 | W90: =SUM(B90:V90) -> 68
A92: TOTAL | C92: Randonnée: | F92: =COUNTA(A4:A88) -> 12 | H92: Moyenne Randonneurs: | M92: =W90/F92 -> 5.666666667 | O92: Arondi | W92: =M92 -> 5.666666667
A110: Feuille Modèle, clic droit: Afficher
C115: Réinitialiser la colonne Total
C118: Renommer les feuilles à l'identique du prénom de la ligne 1: point accent espace
C121: Quand vous double liquerez sur une cellule avec un 1 la copie sera faite sans l'enregistrement
C124: Pour plus de sécurité, l'action se déclenche au double clic de la cellule contenant un 1
C129: Activer pour enregistrer la feuille avant de double cliquer sur le 1 les enregistrements seront effectués dans le même dossier que ce classeur

Sheet Modèle (hidden)

Sheet Feuil2

Sheet Alix
A1: Randonnées Alix Année 2018
A2: Date | B2: Randonnée | D2: Distance | F2: Dénivelé + | G2: Durée | H2: Participant | J2: Météo
A4: 1900-01-15 | B4: S Les Deserts d'Entremont, Pointe de Cochette Retour | D4: 7.4 | F4: 250 | G4: 0.125 | H4: 6
A5: 2018-01-29 | B5: S P La Feclaz, Les Fermes, X, Col de Pertuiset, La Feclaz | D5: 8.4 | F5: 278 | G5: 0.1666666667 | H5: 8
A6: Dernière
A54: Nombre de Randonnées | C54: =COUNTA(B4:B52) -> 2 | D54: Dont: | F54: =COUNTIF(B4:B64,"S *") -> 2 | G54: en Raquettes | I54: Moyenne générale
A55: Le Plus | C55: =MAX(D4:D52) -> 8.4 | E55: =MAX(F4:F52) -> 278 | G55: =MAX(G4:G52) -> 0.1666666667 | H55: =MAX(H4:H52) -> 8 | I55: =C58/G58/24 -> 2.257142857
A56: Le Moins | C56: =MIN(D4:D52) -> 7.4 | E56: =MIN(F4:F52) -> 250 | G56: =MIN(G4:G52) -> 0.125 | H56: =MIN(H4:H52) -> 6
A57: Moyenne | C57: =AVERAGE(D4:D52) -> 7.9 | E57: =AVERAGE(F4:F52) -> 264 | G57: =AVERAGE(G4:G52) -> 0.1458333333 | H57: =AVERAGE(H4:H52) -> 7 | I57: =SUM(H4:H52) -> 14
A58: Cumul | C58: =SUM(D4:D52) -> 15.8 | E58: =SUM(F4:F52) -> 528 | G58: =SUM(G4:G52) -> 0.2916666667
A59: Bernard Heck bheck@live.fr 06 41 32 09 56 | C59: Nombre de Restaurant | F59: =COUNTIF(B4:B64,"R *") -> 0 | G59: Nombre de Pique Nique | J59: =COUNTIF(B4:B64,"*P *") -> 1

Sheet André
A1: Randonnées André Année 2018
A2: Date | B2: Randonnée | D2: Distance | F2: Dénivelé + | G2: Durée | H2: Participant | J2: Météo
A3: a
A4: 2018-01-08 | B4: Les Drouilly, Seloge, Myans, X , Galette ,Les Drouilly | D4: 9.7 | F4: 88 | G4: 0.1180555556 | H4: 6
A5: 2018-01-23 | B5: les Drouilly, Penet, Myans,Lac des peres,Fontanettes ,Crincaillé | D5: 9 | F5: 104 | G5: 0.1076388889 | H5: 7
A6: 2018-01-29 | B6: S P La Feclaz, Les Fermes, X, Col de Pertuiset, La Feclaz | D6: 8.4 | F6: 278 | G6: 0.1666666667 | H6: 8
A7: Dernière
A54: Nombre de Randonnées | C54: =COUNTA(B4:B52) -> 3 | D54: Dont: | F54: =COUNTIF(B4:B91,"S *") -> 1 | G54: en Raquettes | I54: Moyenne générale
A55: Le Plus | C55: =MAX(D4:D52) -> 9.7 | E55: =MAX(F4:F52) -> 278 | G55: =MAX(G4:G52) -> 0.1666666667 | H55: =MAX(H4:H52) -> 8 | I55: =C58/G58/24 -> 2.877876106
A56: Le Moins | C56: =MIN(D4:D52) -> 8.4 | E56: =MIN(F4:F52) -> 88 | G56: =MIN(G4:G52) -> 0.1076388889 | H56: =MIN(H4:H52) -> 6
A57: Moyenne | C57: =AVERAGE(D4:D52) -> 9.033333333 | E57: =AVERAGE(F4:F52) -> 156.6666667 | G57: =AVERAGE(G4:G52) -> 0.130787037 | H57: =AVERAGE(H4:H52) -> 7 | I57: =SUM(H4:H52) -> 21
A58: Cumul | C58: =SUM(D4:D52) -> 27.1 | E58: =SUM(F4:F52) -> 470 | G58: =SUM(G4:G52) -> 0.3923611111
A59: Bernard Heck bheck@live.fr 06 41 32 09 56 | C59: Nombre de Restaurant | F59: =COUNTIF(B4:B91,"R *") -> 0 | G59: Nombre de Pique Nique | J59: =COUNTIF(B4:B91,"*P *") -> 1

Sheet Andrée
A1: Randonnées Andrée Année 2018
A2: Date | B2: Randonnée | D2: Distance | F2: Dénivelé + | G2: Durée | H2: Participant | J2: Météo
A4: 2018-01-08 | B4: Les Drouilly, Seloge, Myans, X , Galette ,Les Drouilly | D4: 9.7 | F4: 88 | G4: 0.1180555556 | H4: 6
A5: 2018-01-12 | B5: St André, la Grue, Route du Col, Lachat, lac Froment, Retour | D5: 8.9 | F5: 298 | G5: 0.1118055556 | H5: 6
A6: 1900-01-15 | B6: S Les Deserts d'Entremont, Pointe de Cochette Retour | D6: 7.4 | F6: 250 | G6: 0.125 | H6: 6
A7: 2018-01-23 | B7: les Drouilly, Penet, Myans,Lac des peres,Fontanettes ,Crincaillé | D7: 9 | F7: 104 | G7: 0.1076388889 | H7: 7
A8: 2018-01-29 | B8: S P La Feclaz, Les Fermes, X, Col de Pertuiset, La Feclaz | D8: 8.4 | F8: 278 | G8: 0.1666666667 | H8: 8
A9: 2018-02-09 | B9: Parking, Ternavet, La Sale, Chataigneraie, Douchet, Lachat, Ret. | D9: 12.2 | F9: 59 | G9: 0.125 | H9: 10
A10: Dernière
A55: Nombre de Randonnées | C55: =COUNTA(B4:B53) -> 6 | D55: Dont: | F55: =COUNTIF(B4:B85,"S *") -> 2 | G55: en Raquettes | I55: Moyenne générale
A56: Le Plus | C56: =MAX(D4:D53) -> 12.2 | E56: =MAX(F4:F53) -> 298 | G56: =MAX(G4:G53) -> 0.1666666667 | H56: =MAX(H4:H53) -> 10 | I56: =C59/G59/24 -> 3.071823204
A57: Le Moins | C57: =MIN(D4:D53) -> 7.4 | E57: =MIN(F4:F53) -> 59 | G57: =MIN(G4:G53) -> 0.1076388889 | H57: =MIN(H4:H53) -> 6
A58: Moyenne | C58: =AVERAGE(D4:D53) -> 9.266666667 | E58: =AVERAGE(F4:F53) -> 179.5 | G58: =AVERAGE(G4:G53) -> 0.1256944444 | H58: =AVERAGE(H4:H53) -> 7.166666667 | I58: =SUM(H4:H53) -> 43
A59: Cumul | C59: =SUM(D4:D53) -> 55.6 | E59: =SUM(F4:F53) -> 1077 | G59: =SUM(G4:G53) -> 0.7541666667
A60: Bernard Heck bheck@live.fr 06 41 32 09 56 | C60: Nombre de Restaurant | F60: =COUNTIF(B4:B85,"R *") -> 0 | G60: Nombre de Pique Nique | J60: =COUNTIF(B4:B85,"*P *") -> 1

Sheet Bernard
A1: Randonnées Bernard Année 2018
A2: Date | B2: Randonnée | D2: Distance | F2: Dénivelé + | G2: Durée | H2: Participant | J2: Météo
A4: 2018-01-02 | B4: parking, Croix Verpy, La Palud, St André, Les Fromagets, Ret. | D4: 9.3 | F4: 151 | G4: 0.125 | H4: 3
A5: 2018-01-05 | B5: St André, Apremont, Cascade du Pichut, Viallet, Retour | D5: 10.7 | F5: 250 | G5: 0.1319444444 | H5: 5
A6: 2018-01-08 | B6: Les Drouilly, Seloge, Myans, X , Galette ,Les Drouilly | D6: 9.7 | F6: 88 | G6: 0.1180555556 | H6: 6
A7: 2018-01-12 | B7: St André, la Grue, Route du Col, Lachat, lac Froment, Retour | D7: 8.9 | F7: 298 | G7: 0.1118055556 | H7: 6
A8: 1900-01-15 | B8: S Les Deserts d'Entremont, Pointe de Cochette Retour | D8: 7.4 | F8: 250 | G8: 0.125 | H8: 6
A9: 2018-01-19 | B9: ZI,Seloge, Les péllerins, PierreHachée,St André,Ret. | D9: 12.6 | F9: 122 | G9: 0.1520833333 | H9: 4
A10: 2018-01-23 | B10: les Drouilly, Penet, Myans,Lac des peres,Fontanettes ,Les Drouilly | D10: 11 | F10: 120 | G10: 0.125 | H10: 7
A11: 2018-01-29 | B11: S P La Feclaz, Les Fermes, X, Col de Pertuiset, La Feclaz | D11: 8.4 | F11: 278 | G11: 0.1666666667 | H11: 8
A12: 2018-02-02 | B12: Blardet, la redoute, chalet Yolande, Les Fontanettes, Ret | D12: 11.5 | F12: 286 | G12: 0.1305555556 | H12: 4
A13: 2018-02-05 | B13: Chignin F1, les Tours, Montlevin, Tormery, Francin, Retour | D13: 10 | F13: 185 | G13: 0.1256944444 | H13: 6
A14: 2018-02-09 | B14: Parking, Ternavet, La Sale, Chataigneraie, Douchet, Lachat, Ret. | D14: 12.2 | F14: 59 | G14: 0.125 | H14: 10
A15: Dernière
A54: Nombre de Randonnées | C54: =COUNTA(B4:B52) -> 11 | D54: Dont: | F54: =COUNTIF(B4:B60,"S *") -> 2 | G54: en Raquettes | I54: Moyenne générale
A55: Le Plus | C55: =MAX(D4:D52) -> 12.6 | E55: =MAX(F4:F52) -> 298 | G55: =MAX(G4:G52) -> 0.1666666667 | H55: =MAX(H4:H52) -> 10 | I55: =C58/G58/24 -> 3.239246013
A56: Le Moins | C56: =MIN(D4:D52) -> 7.4 | E56: =MIN(F4:F52) -> 59 | G56: =MIN(G4:G52) -> 0.1118055556 | H56: =MIN(H4:H52) -> 3
A57: Moyenne | C57: =AVERAGE(D4:D52) -> 10.15454545 | E57: =AVERAGE(F4:F52) -> 189.7272727 | G57: =AVERAGE(G4:G52) -> 0.1306186869 | H57: =AVERAGE(H4:H52) -> 5.909090909 | I57: =SUM(H4:H52) -> 65
A58: Cumul | C58: =SUM(D4:D52) -> 111.7 | E58: =SUM(F4:F52) -> 2087 | G58: =SUM(G4:G52) -> 1.436805556
A59: Bernard Heck bheck@live.fr 06 41 32 09 56 | C59: Nombre de Restaurant | F59: =COUNTIF(B4:B60,"R *") -> 0 | G59: Nombre de Pique Nique | J59: =COUNTIF(B4:B60,"*P *") -> 1

Sheet Christiane
A1: Randonnées Christiane Année 2018
A2: Date | B2: Randonnée | D2: Distance | F2: Dénivelé + | G2: Durée | H2: Participant | J2: Météo
A4: 2018-01-05 | B4: St André, Apremont, Cascade du Pichut, Viallet, Retour | D4: 10.7 | F4: 250 | G4: 0.1319444444 | H4: 5
A5: 2018-02-09 | B5: Parking, Ternavet, La Sale, Chataigneraie, Douchet, Lachat, Ret. | D5: 12.2 | F5: 59 | G5: 0.125 | H5: 10
A6: Dernière
A54: Nombre de Randonnées | C54: =COUNTA(B4:B52) -> 2 | D54: Dont: | F54: =COUNTIF(B4:B81,"S *") -> 0 | G54: en Raquettes | I54: Moyenne générale
A55: Le Plus | C55: =MAX(D4:D52) -> 12.2 | E55: =MAX(F4:F52) -> 250 | G55: =MAX(G4:G52) -> 0.1319444444 | H55: =MAX(H4:H52) -> 10 | I55: =C58/G58/24 -> 3.713513514
A56: Le Moins | C56: =MIN(D4:D52) -> 10.7 | E56: =MIN(F4:F52) -> 59 | G56: =MIN(G4:G52) -> 0.125 | H56: =MIN(H4:H52) -> 5
A57: Moyenne | C57: =AVERAGE(D4:D52) -> 11.45 | E57: =AVERAGE(F4:F52) -> 154.5 | G57: =AVERAGE(G4:G52) -> 0.1284722222 | H57: =AVERAGE(H4:H52) -> 7.5 | I57: =SUM(H4:H52) -> 15
A58: Cumul | C58: =SUM(D4:D52) -> 22.9 | E58: =SUM(F4:F52) -> 309 | G58: =SUM(G4:G52) -> 0.2569444444
A59: Bernard Heck bheck@live.fr 06 41 32 09 56 | C59: Nombre de Restaurant | F59: =COUNTIF(B4:B81,"R *") -> 0 | G59: Nombre de Pique Nique | J59: =COUNTIF(B4:B81,"P *") -> 0

Sheet Dany
A1: Randonnées Dany Année 2018
A2: Date | B2: Randonnée | D2: Distance | F2: Dénivelé + | G2: Durée | H2: Participant | J2: Météo
A4: 2018-01-12 | B4: St André, la Grue, Route du Col, Lachat, lac Froment, Retour | D4: 8.9 | F4: 298 | G4: 0.1118055556 | H4: 6
A5: 2018-01-23 | B5: les Drouilly, Penet, Myans,Lac des peres,Fontanettes ,Crincaillé | D5: 9 | F5: 104 | G5: 0.1076388889 | H5: 7
A6: 2018-02-02 | B6: Blardet, la redoute, chalet Yolande, Les Fontanettes, Ret | D6: 11.5 | F6: 286 | G6: 0.1305555556 | H6: 4
A7: 2018-02-05 | B7: Chignin F1, les Tours, Montlevin, Tormery, Francin, Retour | D7: 10 | F7: 185 | G7: 0.1256944444 | H7: 6
A8: 2018-02-09 | B8: Parking, Ternavet, La Sale, Chataigneraie, Douchet, Lachat, Ret. | D8: 12.2 | F8: 59 | G8: 0.125 | H8: 10
A9: Dernière
A54: Nombre de Randonnées | C54: =COUNTA(B4:B52) -> 5 | D54: Dont: | F54: =COUNTIF(B4:B81,"S *") -> 0 | G54: en Raquettes | I54: Moyenne générale
A55: Le Plus | C55: =MAX(D4:D52) -> 12.2 | E55: =MAX(F4:F52) -> 298 | G55: =MAX(G4:G52) -> 0.1305555556 | H55: =MAX(H4:H52) -> 10 | I55: =C58/G58/24 -> 3.579190751
A56: Le Moins | C56: =MIN(D4:D52) -> 8.9 | E56: =MIN(F4:F52) -> 59 | G56: =MIN(G4:G52) -> 0.1076388889 | H56: =MIN(H4:H52) -> 4
A57: Moyenne | C57: =AVERAGE(D4:D52) -> 10.32 | E57: =AVERAGE(F4:F52) -> 186.4 | G57: =AVERAGE(G4:G52) -> 0.1201388889 | H57: =AVERAGE(H4:H52) -> 6.6 | I57: =SUM(H4:H52) -> 33
A58: Cumul | C58: =SUM(D4:D52) -> 51.6 | E58: =SUM(F4:F52) -> 932 | G58: =SUM(G4:G52) -> 0.6006944444
A59: Bernard Heck bheck@live.fr 06 41 32 09 56 | C59: Nombre de Restaurant | F59: =COUNTIF(B4:B81,"R *") -> 0 | G59: Nombre de Pique Nique | J59: =COUNTIF(B4:B81,"P *") -> 0

Sheet Gisèle
A1: Randonnées Gisèle Année 2018
A2: Date | B2: Randonnée | D2: Distance | F2: Dénivelé + | G2: Durée | H2: Participant | J2: Météo
A4: 2018-01-02 | B4: parking, Croix Verpy, La Palud, St André, Les Fromagets, Ret. | D4: 9.3 | F4: 151 | G4: 0.125 | H4: 3
A5: 2018-01-05 | B5: St André, Apremont, Cascade du Pichut, Viallet, Retour | D5: 10.7 | F5: 250 | G5: 0.1319444444 | H5: 5
A6: 2018-01-08 | B6: Les Drouilly, Seloge, Myans, X , Galette ,Les Drouilly | D6: 9.7 | F6: 88 | G6: 0.1180555556 | H6: 6
A7: 2018-01-13 | B7: St André, La Palud, St André | D7: 6.6 | F7: 195 | G7: 0.08333333333 | H7: 2
A8: 1900-01-15 | B8: S Les Deserts d'Entremont, Pointe de Cochette Retour | D8: 7.4 | F8: 250 | G8: 0.125 | H8: 6
A9: 2018-01-19 | B9: ZI,Seloge, Les péllerins, PierreHachée,St André,Ret. | D9: 12.6 | F9: 122 | G9: 0.1520833333 | H9: 4
A10: 2018-02-09 | B10: Parking, Ternavet, La Sale, Chataigneraie, Douchet, Lachat, Ret. | D10: 12.2 | F10: 59 | G10: 0.125 | H10: 10
A11: Dernière
A54: Nombre de Randonnées | C54: =COUNTA(B4:B52) -> 7 | D54: Dont: | F54: =COUNTIF(B4:B75,"S *") -> 1 | G54: en Raquettes | I54: Moyenne générale
A55: Le Plus | C55: =MAX(D4:D52) -> 12.6 | E55: =MAX(F4:F52) -> 250 | G55: =MAX(G4:G52) -> 0.1520833333 | H55: =MAX(H4:H52) -> 10 | I55: =C58/G58/24 -> 3.317191283
A56: Le Moins | C56: =MIN(D4:D52) -> 6.6 | E56: =MIN(F4:F52) -> 59 | G56: =MIN(G4:G52) -> 0.08333333333 | H56: =MIN(H4:H52) -> 2
A57: Moyenne | C57: =AVERAGE(D4:D52) -> 9.785714286 | E57: =AVERAGE(F4:F52) -> 159.2857143 | G57: =AVERAGE(G4:G52) -> 0.1229166667 | H57: =AVERAGE(H4:H52) -> 5.142857143 | I57: =SUM(H4:H52) -> 36
A58: Cumul | C58: =SUM(D4:D52) -> 68.5 | E58: =SUM(F4:F52) -> 1115 | G58: =SUM(G4:G52) -> 0.8604166667
A59: Bernard Heck bheck@live.fr 06 41 32 09 56 | C59: Nombre de Restaurant | F59: =COUNTIF(B4:B75,"R *") -> 0 | G59: Nombre de Pique Nique | J59: =COUNTIF(B4:B75,"*P *") -> 0

Sheet Marie
A1: Randonnées Marie Année 2018
A2: Date | B2: Randonnée | D2: Distance | F2: Dénivelé + | G2: Durée | H2: Participant | J2: Météo
A4: 2018-01-02 | B4: parking, Croix Verpy, La Palud, St André, Les Fromagets, Ret. | D4: 9.3 | F4: 151 | G4: 0.125 | H4: 3
A5: 2018-01-05 | B5: St André, Apremont, Cascade du Pichut, Viallet, Retour | D5: 10.7 | F5: 250 | G5: 0.1319444444 | H5: 5
A6: 2018-01-08 | B6: Les Drouilly, Seloge, Myans, X , Galette ,Les Drouilly | D6: 9.7 | F6: 88 | G6: 0.1180555556 | H6: 6
A7: 2018-01-13 | B7: St André, La Palud, St André | D7: 6.6 | F7: 195 | G7: 0.08333333333 | H7: 2
A8: 1900-01-15 | B8: S Les Deserts d'Entremont, Pointe de Cochette Retour | D8: 7.4 | F8: 250 | G8: 0.125 | H8: 6
A9: 2018-01-19 | B9: ZI,Seloge, Les péllerins, PierreHachée,St André,Ret. | D9: 12.6 | F9: 122 | G9: 0.1520833333 | H9: 4
A10: 2018-01-23 | B10: les Drouilly, Penet, Myans,Lac des peres,Fontanettes ,Les Drouilly | D10: 11 | F10: 120 | G10: 0.125 | H10: 7
A11: 2018-01-29 | B11: S P La Feclaz, Les Fermes, X, Col de Pertuiset, La Feclaz | D11: 8.4 | F11: 278 | G11: 0.1666666667 | H11: 8
A12: 2018-02-02 | B12: Blardet, la redoute, chalet Yolande, Les Fontanettes, Ret | D12: 11.5 | F12: 286 | G12: 0.1305555556 | H12: 4
A13: 2018-02-05 | B13: Chignin F1, les Tours, Montlevin, Tormery, Francin, Retour | D13: 10 | F13: 185 | G13: 0.1256944444 | H13: 6
A14: 2018-02-09 | B14: Parking, Ternavet, La Sale, Chataigneraie, Douchet, Lachat, Ret. | D14: 12.2 | F14: 59 | G14: 0.125 | H14: 10
A15: Dernière
A58: Nombre de Randonnées | C58: =COUNTA(B4:B56) -> 11 | D58: Dont: | F58: =COUNTIF(B4:B64,"S *") -> 2 | G58: en Raquettes | I58: Moyenne générale
A59: Le Plus | C59: =MAX(D4:D56) -> 12.6 | E59: =MAX(F4:F56) -> 286 | G59: =MAX(G4:G56) -> 0.1666666667 | H59: =MAX(H4:H56) -> 10 | I59: =C62/G62/24 -> 3.236686391
A60: Le Moins | C60: =MIN(D4:D56) -> 6.6 | E60: =MIN(F4:F56) -> 59 | G60: =MIN(G4:G56) -> 0.08333333333 | H60: =MIN(H4:H56) -> 2
A61: Moyenne | C61: =AVERAGE(D4:D56) -> 9.945454545 | E61: =AVERAGE(F4:F56) -> 180.3636364 | G61: =AVERAGE(G4:G56) -> 0.128030303 | H61: =AVERAGE(H4:H56) -> 5.545454545 | I61: =SUM(H4:H56) -> 61
A62: Cumul | C62: =SUM(D4:D56) -> 109.4 | E62: =SUM(F4:F56) -> 1984 | G62: =SUM(G4:G56) -> 1.408333333
A63: Bernard Heck bheck@live.fr 06 41 32 09 56 | C63: Nombre de Restaurant | F63: =COUNTIF(B4:B64,"R *") -> 0 | G63: Nombre de Pique Nique | J63: =COUNTIF(B4:B64,"*P *") -> 1

Sheet Yolande
A1: Randonnées Yolande Année 2018
A2: Date | B2: Randonnée | D2: Distance | F2: Dénivelé + | G2: Durée | H2: Participant | J2: Météo
A4: 2018-01-05 | B4: St André, Apremont, Cascade du Pichut, Viallet, Retour | D4: 10.7 | F4: 250 | G4: 0.1319444444 | H4: 5
A5: 2018-01-08 | B5: Les Drouilly, Seloge, Myans, X , Galette ,Les Drouilly | D5: 9.7 | F5: 88 | G5: 0.1180555556 | H5: 6
A6: 2018-01-12 | B6: St André, la Grue, Route du Col, Lachat, lac Froment, Retour | D6: 8.9 | F6: 298 | G6: 0.1118055556 | H6: 6
A7: 1900-01-15 | B7: S Les Deserts d'Entremont, Pointe de Cochette Retour | D7: 7.4 | F7: 250 | G7: 0.125 | H7: 6
A8: 2018-01-19 | B8: ZI,Seloge, Les péllerins, PierreHachée,St André,Ret. | D8: 12.6 | F8: 122 | G8: 0.1520833333 | H8: 4
A9: 2018-01-23 | B9: les Drouilly, Penet, Myans,Lac des peres,Fontanettes ,Les Drouilly | D9: 11 | F9: 120 | G9: 0.125 | H9: 7
A10: 2018-01-29 | B10: S P La Feclaz, Les Fermes, X, Col de Pertuiset, La Feclaz | D10: 8.4 | F10: 278 | G10: 0.1666666667 | H10: 8
A11: 2018-02-05 | B11: Chignin F1, les Tours, Montlevin, Tormery, Francin, Retour | D11: 10 | F11: 185 | G11: 0.1256944444 | H11: 6
A12: 2018-02-09 | B12: Parking, Ternavet, La Sale, Chataigneraie, Douchet, Lachat, Ret. | D12: 12.2 | F12: 59 | G12: 0.125 | H12: 10
A13: Dernière
A65: Nombre de Randonnées | C65: =COUNTA(B4:B62) -> 9 | D65: Dont: | F65: =COUNTIF(B4:B66,"S *") -> 2 | G65: en Raquettes | I65: Moyenne générale
A66: Le Plus | C66: =MAX(D4:D63) -> 12.6 | E66: =MAX(F4:F63) -> 298 | G66: =MAX(G4:G63) -> 0.1666666667 | H66: =MAX(H4:H63) -> 10 | I66: =C69/G69/24 -> 3.206349206
A67: Le Moins | C67: =MIN(D4:D63) -> 7.4 | E67: =MIN(F4:F63) -> 59 | G67: =MIN(G4:G63) -> 0.1118055556 | H67: =MIN(H4:H63) -> 4
A68: Moyenne | C68: =AVERAGE(D4:D63) -> 10.1 | E68: =AVERAGE(F4:F63) -> 183.3333333 | G68: =AVERAGE(G4:G63) -> 0.13125 | H68: =AVERAGE(H4:H63) -> 6.444444444 | I68: =SUM(H4:H63) -> 58
A69: Cumul | C69: =SUM(D4:D63) -> 90.9 | E69: =SUM(F4:F63) -> 1650 | G69: =SUM(G4:G63) -> 1.18125
A70: Bernard Heck bheck@live.fr 06 41 32 09 56 | C70: Nombre de Restaurant | F70: =COUNTIF(B4:B66,"R *") -> 0 | G70: Nombre de Pique Nique | J70: =COUNTIF(B4:B66,"*P *") -> 1

Sheet Josiane
A1: Randonnées Josiane Année 2018
A2: Date | B2: Randonnée | D2: Distance | F2: Dénivelé + | G2: Durée | H2: Participant | J2: Météo
A4: 2018-01-12 | B4: St André, la Grue, Route du Col, Lachat, lac Froment, Retour | D4: 8.9 | F4: 298 | G4: 0.1118055556 | H4: 6
A5: 2018-02-09 | B5: Parking, Ternavet, La Sale, Chataigneraie, Douchet, Lachat, Ret. | D5: 12.2 | F5: 59 | G5: 0.125 | H5: 10
A6: Dernière
A54: Nombre de Randonnées | C54: =COUNTA(B4:B52) -> 2 | D54: Dont: | F54: =COUNTIF(B4:B82,"S *") -> 0 | G54: en Raquettes | I54: Moyenne générale
A55: Le Plus | C55: =MAX(D4:D52) -> 12.2 | E55: =MAX(F4:F52) -> 298 | G55: =MAX(G4:G52) -> 0.125 | H55: =MAX(H4:H52) -> 10 | I55: =C58/G58/24 -> 3.712609971
A56: Le Moins | C56: =MIN(D4:D52) -> 8.9 | E56: =MIN(F4:F52) -> 59 | G56: =MIN(G4:G52) -> 0.1118055556 | H56: =MIN(H4:H52) -> 6
A57: Moyenne | C57: =AVERAGE(D4:D52) -> 10.55 | E57: =AVERAGE(F4:F52) -> 178.5 | G57: =AVERAGE(G4:G52) -> 0.1184027778 | H57: =AVERAGE(H4:H52) -> 8 | I57: =SUM(H4:H52) -> 16
A58: Cumul | C58: =SUM(D4:D52) -> 21.1 | E58: =SUM(F4:F52) -> 357 | G58: =SUM(G4:G52) -> 0.2368055556
A59: Bernard Heck bheck@live.fr 06 41 32 09 56 | C59: Nombre de Restaurant | F59: =COUNTIF(B4:B82,"R *") -> 0 | G59: Nombre de Pique Nique | J59: =COUNTIF(B4:B82,"*P *") -> 0

Sheet Marie-F.
A1: Randonnées Marie-France Année 2018
A2: Date | B2: Randonnée | D2: Distance | F2: Dénivelé + | G2: Durée | H2: Participant | J2: Météo
A4: Dernière
A54: Nombre de Randonnées | C54: =COUNTA(B4:B52) -> 0 | D54: Dont: | F54: =COUNTIF(B4:B81,"S *") -> 0 | G54: en Raquettes | I54: Moyenne générale
A55: Le Plus | C55: =MAX(D4:D52) -> 0 | E55: =MAX(F4:F52) -> 0 | G55: =MAX(G4:G52) -> 0 | H55: =MAX(H4:H52) -> 0 | I55: =C58/G58/24 -> 
A56: Le Moins | C56: =MIN(D4:D52) -> 0 | E56: =MIN(F4:F52) -> 0 | G56: =MIN(G4:G52) -> 0 | H56: =MIN(H4:H52) -> 0
A57: Moyenne | C57: =AVERAGE(D4:D52) ->  | E57: =AVERAGE(F4:F52) ->  | G57: =AVERAGE(G4:G52) ->  | H57: =AVERAGE(H4:H52) ->  | I57: =SUM(H4:H52) -> 0
A58: Cumul | C58: =SUM(D4:D52) -> 0 | E58: =SUM(F4:F52) -> 0 | G58: =SUM(G4:G52) -> 0
A59: Bernard Heck bheck@live.fr 06 41 32 09 56 | C59: Nombre de Restaurant | F59: =COUNTIF(B4:B81,"R *") -> 0 | G59: Nombre de Pique Nique | J59: =COUNTIF(B4:B81,"P *") -> 0

Sheet Chris2.
A1: Randonnées Christiane P. Année 2018
A2: Date | B2: Randonnée | D2: Distance | F2: Dénivelé + | G2: Durée | H2: Participant | J2: Météo
A4: Dernière
A54: Nombre de Randonnées | C54: =COUNTA(B4:B52) -> 0 | D54: Dont: | F54: 0 | G54: en Raquettes | I54: Moyenne générale
A55: Le Plus | C55: =MAX(D4:D52) -> 0 | E55: =MAX(F4:F52) -> 0 | G55: =MAX(G4:G52) -> 0 | H55: =MAX(H4:H52) -> 0 | I55: =C58/G58/24 -> 
A56: Le Moins | C56: =MIN(D4:D52) -> 0 | E56: =MIN(F4:F52) -> 0 | G56: =MIN(G4:G52) -> 0 | H56: =MIN(H4:H52) -> 0
A57: Moyenne | C57: =AVERAGE(D4:D52) ->  | E57: =AVERAGE(F4:F52) ->  | G57: =AVERAGE(G4:G52) ->  | H57: =AVERAGE(H4:H52) ->  | I57: =SUM(H4:H52) -> 0
A58: Cumul | C58: =SUM(D4:D52) -> 0 | E58: =SUM(F4:F52) -> 0 | G58: =SUM(G4:G52) -> 0
A59: Bernard Heck bheck@live.fr 06 41 32 09 56 | C59: Nombre de Restaurant | F59: =COUNTIF(B4:B95,"R *") -> 0 | G59: Nombre de Pique Nique | J59: 0

Sheet Michel P
A1: Randonnées Michel P. Année 2018
A2: Date | B2: Randonnée | D2: Distance | F2: Dénivelé + | G2: Durée | H2: Participant | J2: Météo
A4: Dernière
A54: Nombre de Randonnées | C54: =COUNTA(B4:B52) -> 0 | D54: Dont: | F54: =COUNTIF(B4:B84,"S *") -> 0 | G54: en Raquettes | I54: Moyenne générale
A55: Le Plus | C55: =MAX(D4:D52) -> 0 | E55: =MAX(F4:F52) -> 0 | G55: =MAX(G4:G52) -> 0 | H55: =MAX(H4:H52) -> 0 | I55: =C58/G58/24 -> 
A56: Le Moins | C56: =MIN(D4:D52) -> 0 | E56: =MIN(F4:F52) -> 0 | G56: =MIN(G4:G52) -> 0 | H56: =MIN(H4:H52) -> 0
A57: Moyenne | C57: =AVERAGE(D4:D52) ->  | E57: =AVERAGE(F4:F52) ->  | G57: =AVERAGE(G4:G52) ->  | H57: =AVERAGE(H4:H52) ->  | I57: =SUM(H4:H52) -> 0
A58: Cumul | C58: =SUM(D4:D52) -> 0 | E58: =SUM(F4:F52) -> 0 | G58: =SUM(G4:G52) -> 0
A59: Bernard Heck bheck@live.fr 06 41 32 09 56 | C59: Nombre de Restaurant | F59: =COUNTIF(B4:B84,"R *") -> 0 | G59: Nombre de Pique Nique | J59: =COUNTIF(B4:B84,"P *") -> 0

Sheet Michel T
A1: Randonnées Michel T ardy Année 2018
A2: Date | B2: Randonnée | D2: Distance | F2: Dénivelé + | G2: Durée | H2: Participant | J2: Météo
A4: Dernière
A55: Nombre de Randonnées | C55: =COUNTA(B4:B52) -> 0 | D55: Dont: | F55: =COUNTIF(B4:B64,"S *") -> 0 | G55: en Raquettes | I55: Moyenne générale
A56: Le Plus | C56: =MAX(D4:D53) -> 0 | E56: =MAX(F4:F53) -> 0 | G56: =MAX(G4:G53) -> 0 | H56: =MAX(H4:H53) -> 0 | I56: =C59/G59/24 -> 
A57: Le Moins | C57: =MIN(D4:D53) -> 0 | E57: =MIN(F4:F53) -> 0 | G57: =MIN(G4:G53) -> 0 | H57: =MIN(H4:H53) -> 0
A58: Moyenne | C58: =AVERAGE(D4:D53) ->  | E58: =AVERAGE(F4:F53) ->  | G58: =AVERAGE(G4:G53) ->  | H58: =AVERAGE(H4:H53) ->  | I58: =SUM(H4:H53) -> 0
A59: Cumul | C59: =SUM(D4:D53) -> 0 | E59: =SUM(F4:F53) -> 0 | G59: =SUM(G4:G53) -> 0
A60: Bernard Heck bheck@live.fr 06 41 32 09 56 | C60: Nombre de Restaurant | F60: =COUNTIF(B4:B64,"R *") -> 0 | G60: Nombre de Pique Nique | J60: =COUNTIF(B4:B64,"P *") -> 0

Sheet Gianna
A1: Randonnées Gianna Année 2018
A2: Date | B2: Randonnée | D2: Distance | F2: Dénivelé + | G2: Durée | H2: Participant | J2: Météo
A4: 2018-01-23 | B4: les Drouilly, Penet, Myans,Lac des peres,Fontanettes ,Crincaillé | D4: 9 | F4: 104 | G4: 0.1076388889 | H4: 7
A5: 2018-02-09 | B5: Parking, Ternavet, La Sale, Chataigneraie, Douchet, Lachat, Ret. | D5: 12.2 | F5: 59 | G5: 0.125 | H5: 10
A6: Dernière
A54: Nombre de Randonnées | C54: =COUNTA(B4:B52) -> 2 | D54: Dont: | F54: =COUNTIF(B4:B81,"S *") -> 0 | G54: en Raquettes | I54: Moyenne générale
A55: Le Plus | C55: =MAX(D4:D52) -> 12.2 | E55: =MAX(F4:F52) -> 104 | G55: =MAX(G4:G52) -> 0.125 | H55: =MAX(H4:H52) -> 10 | I55: =C58/G58/24 -> 3.797014925
A56: Le Moins | C56: =MIN(D4:D52) -> 9 | E56: =MIN(F4:F52) -> 59 | G56: =MIN(G4:G52) -> 0.1076388889 | H56: =MIN(H4:H52) -> 7
A57: Moyenne | C57: =AVERAGE(D4:D52) -> 10.6 | E57: =AVERAGE(F4:F52) -> 81.5 | G57: =AVERAGE(G4:G52) -> 0.1163194444 | H57: =AVERAGE(H4:H52) -> 8.5 | I57: =SUM(H4:H52) -> 17
A58: Cumul | C58: =SUM(D4:D52) -> 21.2 | E58: =SUM(F4:F52) -> 163 | G58: =SUM(G4:G52) -> 0.2326388889
A59: Bernard Heck bheck@live.fr 06 41 32 09 56 | C59: Nombre de Restaurant | F59: =COUNTIF(B4:B81,"R *") -> 0 | G59: Nombre de Pique Nique | J59: =COUNTIF(B4:B81,"P *") -> 0

Sheet Chantal A
A1: Randonnées Chantal Amos Année 2018
A2: Date | B2: Randonnée | D2: Distance | F2: Dénivelé + | G2: Durée | H2: Participant | J2: Météo
A4: 2018-01-12 | B4: St André, la Grue, Route du Col, Lachat, lac Froment, Retour | D4: 8.9 | F4: 298 | G4: 0.1118055556 | H4: 6
A5: 2018-02-02 | B5: Blardet, la redoute, Ret | D5: 7.8 | F5: 130 | G5: 0.08333333333 | H5: 4
A6: Dernière
A55: Nombre de Randonnées | C55: =COUNTA(B4:B52) -> 2 | D55: Dont: | F55: =COUNTIF(B4:B81,"S *") -> 0 | G55: en Raquettes | I55: Moyenne générale
A56: Le Plus | C56: =MAX(D4:D53) -> 8.9 | E56: =MAX(F4:F53) -> 298 | G56: =MAX(G4:G53) -> 0.1118055556 | H56: =MAX(H4:H53) -> 6 | I56: =C59/G59/24 -> 3.565836299
A57: Le Moins | C57: =MIN(D4:D53) -> 7.8 | E57: =MIN(F4:F53) -> 130 | G57: =MIN(G4:G53) -> 0.08333333333 | H57: =MIN(H4:H53) -> 4
A58: Moyenne | C58: =AVERAGE(D4:D53) -> 8.35 | E58: =AVERAGE(F4:F53) -> 214 | G58: =AVERAGE(G4:G53) -> 0.09756944444 | H58: =AVERAGE(H4:H53) -> 5 | I58: =SUM(H4:H53) -> 10
A59: Cumul | C59: =SUM(D4:D53) -> 16.7 | E59: =SUM(F4:F53) -> 428 | G59: =SUM(G4:G53) -> 0.1951388889
A60: Bernard Heck bheck@live.fr 06 41 32 09 56 | C60: Nombre de Restaurant | F60: =COUNTIF(B4:B81,"R *") -> 0 | G60: Nombre de Pique Nique | J60: =COUNTIF(B4:B81,"P *") -> 0

Sheet Marc V
A1: Randonnées Marc V allet Année 2018
A2: Date | B2: Randonnée | D2: Distance | F2: Dénivelé + | G2: Durée | H2: Participant | J2: Météo
A4: Dernière
A56: Nombre de Randonnées | C56: =COUNTA(B4:B53) -> 0 | D56: Dont: | F56: =COUNTIF(B4:B64,"S *") -> 0 | G56: en Raquettes | I56: Moyenne générale
A57: Le Plus | C57: =MAX(D4:D54) -> 0 | E57: =MAX(F4:F54) -> 0 | G57: =MAX(G4:G54) -> 0 | H57: =MAX(H4:H54) -> 0 | I57: =C60/G60/24 -> 
A58: Le Moins | C58: =MIN(D4:D54) -> 0 | E58: =MIN(F4:F54) -> 0 | G58: =MIN(G4:G54) -> 0 | H58: =MIN(H4:H54) -> 0
A59: Moyenne | C59: =AVERAGE(D4:D54) ->  | E59: =AVERAGE(F4:F54) ->  | G59: =AVERAGE(G4:G54) ->  | H59: =AVERAGE(H4:H54) ->  | I59: =SUM(H4:H54) -> 0
A60: Cumul | C60: =SUM(D4:D54) -> 0 | E60: =SUM(F4:F54) -> 0 | G60: =SUM(G4:G54) -> 0
A61: Bernard Heck bheck@live.fr 06 41 32 09 56 | C61: Nombre de Restaurant | F61: =COUNTIF(B4:B64,"R *") -> 0 | G61: Nombre de Pique Nique | J61: =COUNTIF(B4:B64,"P *") -> 0

Sheet Chantal C
A1: Randonnées Chantal C arle Année 2018
A2: Date | B2: Randonnée | D2: Distance | F2: Dénivelé + | G2: Durée | H2: Participant | J2: Météo
A4: 2018-02-09 | B4: Parking, Ternavet, La Sale, Chataigneraie, Douchet, Lachat, Ret. | D4: 12.2 | F4: 59 | G4: 0.125 | H4: 10
A5: Dernière
A55: Nombre de Randonnées | C55: =COUNTA(B4:B52) -> 1 | D55: Dont: | F55: =COUNTIF(B4:B63,"S *") -> 0 | G55: en Raquettes | I55: Moyenne générale
A56: Le Plus | C56: =MAX(D4:D53) -> 12.2 | E56: =MAX(F4:F53) -> 59 | G56: =MAX(G4:G53) -> 0.125 | H56: =MAX(H4:H53) -> 10 | I56: =C59/G59/24 -> 4.066666667
A57: Le Moins | C57: =MIN(D4:D53) -> 12.2 | E57: =MIN(F4:F53) -> 59 | G57: =MIN(G4:G53) -> 0.125 | H57: =MIN(H4:H53) -> 10
A58: Moyenne | C58: =AVERAGE(D4:D53) -> 12.2 | E58: =AVERAGE(F4:F53) -> 59 | G58: =AVERAGE(G4:G53) -> 0.125 | H58: =AVERAGE(H4:H53) -> 10 | I58: =SUM(H4:H53) -> 10
A59: Cumul | C59: =SUM(D4:D53) -> 12.2 | E59: =SUM(F4:F53) -> 59 | G59: =SUM(G4:G53) -> 0.125
A60: Bernard Heck bheck@live.fr 06 41 32 09 56 | C60: Nombre de Restaurant | F60: =COUNTIF(B4:B63,"R *") -> 0 | G60: Nombre de Pique Nique | J60: =COUNTIF(B4:B63,"P *") -> 0

Sheet Marc M
A1: Randonnées Marc M ichetti Année 2018
A2: Date | B2: Randonnée | D2: Distance | F2: Dénivelé + | G2: Durée | H2: Participant | J2: Météo
A4: 2018-01-29 | B4: S P La Feclaz, Les Fermes, X, Col de Pertuiset, La Feclaz | D4: 8.4 | F4: 278 | G4: 0.1666666667 | H4: 8
A5: 2018-02-05 | B5: Chignin F1, les Tours, Montlevin, Tormery, Francin, Retour | D5: 10 | F5: 185 | G5: 0.1256944444 | H5: 6
A6: Dernière
A56: Nombre de Randonnées | C56: =COUNTA(B4:B53) -> 2 | D56: Dont: | F56: =COUNTIF(B4:B64,"S *") -> 1 | G56: en Raquettes | I56: Moyenne générale
A57: Le Plus | C57: =MAX(D4:D54) -> 10 | E57: =MAX(F4:F54) -> 278 | G57: =MAX(G4:G54) -> 0.1666666667 | H57: =MAX(H4:H54) -> 8 | I57: =C60/G60/24 -> 2.622327791
A58: Le Moins | C58: =MIN(D4:D54) -> 8.4 | E58: =MIN(F4:F54) -> 185 | G58: =MIN(G4:G54) -> 0.1256944444 | H58: =MIN(H4:H54) -> 6
A59: Moyenne | C59: =AVERAGE(D4:D54) -> 9.2 | E59: =AVERAGE(F4:F54) -> 231.5 | G59: =AVERAGE(G4:G54) -> 0.1461805556 | H59: =AVERAGE(H4:H54) -> 7 | I59: =SUM(H4:H54) -> 14
A60: Cumul | C60: =SUM(D4:D54) -> 18.4 | E60: =SUM(F4:F54) -> 463 | G60: =SUM(G4:G54) -> 0.2923611111
A61: Bernard Heck bheck@live.fr 06 41 32 09 56 | C61: Nombre de Restaurant | F61: =COUNTIF(B4:B64,"R*") -> 0 | G61: Nombre de Pique Nique | J61: =COUNTIF(B4:B64,"*P *") -> 1

Sheet Anne Marie
A1: Randonnées Anne Marie Michetti Année 2018
A2: Date | B2: Randonnée | D2: Distance | F2: Dénivelé + | G2: Durée | H2: Participant | J2: Météo
A4: 2018-01-29 | B4: S P La Feclaz, Les Fermes, X, Col de Pertuiset, La Feclaz | D4: 8.4 | F4: 278 | G4: 0.1666666667 | H4: 8
A5: 2018-02-05 | B5: Chignin F1, les Tours, Montlevin, Tormery, Francin, Retour | D5: 10 | F5: 185 | G5: 0.1256944444 | H5: 6
A6: Dernière
A55: Nombre de Randonnées | C55: =COUNTA(B4:B52) -> 2 | D55: Dont: | F55: =COUNTIF(B4:B63,"S *") -> 1 | G55: en Raquettes | I55: Moyenne générale
A56: Le Plus | C56: =MAX(D4:D53) -> 10 | E56: =MAX(F4:F53) -> 278 | G56: =MAX(G4:G53) -> 0.1666666667 | H56: =MAX(H4:H53) -> 8 | I56: =C59/G59/24 -> 2.622327791
A57: Le Moins | C57: =MIN(D4:D53) -> 8.4 | E57: =MIN(F4:F53) -> 185 | G57: =MIN(G4:G53) -> 0.1256944444 | H57: =MIN(H4:H53) -> 6
A58: Moyenne | C58: =AVERAGE(D4:D53) -> 9.2 | E58: =AVERAGE(F4:F53) -> 231.5 | G58: =AVERAGE(G4:G53) -> 0.1461805556 | H58: =AVERAGE(H4:H53) -> 7 | I58: =SUM(H4:H53) -> 14
A59: Cumul | C59: =SUM(D4:D53) -> 18.4 | E59: =SUM(F4:F53) -> 463 | G59: =SUM(G4:G53) -> 0.2923611111
A60: Bernard Heck bheck@live.fr 06 41 32 09 56 | C60: Nombre de Restaurant | F60: =COUNTIF(B4:B63,"R *") -> 0 | G60: Nombre de Pique Nique | J60: =COUNTIF(B4:B63,"*P *") -> 1

Sheet Henri D
A1: Randonnées Henri Dupin Année 2018
A2: Date | B2: Randonnée | D2: Distance | F2: Dénivelé + | G2: Durée | H2: Participant | J2: Météo
A55: Nombre de Randonnées | C55: =COUNTA(B4:B52) -> 0 | D55: Dont: | F55: =COUNTIF(B4:B63,"S *") -> 0 | G55: en Raquettes | I55: Moyenne générale
A56: Le Plus | C56: =MAX(D4:D53) -> 0 | E56: =MAX(F4:F53) -> 0 | G56: =MAX(G4:G53) -> 0 | H56: =MAX(H4:H53) -> 0 | I56: =C59/G59/24 -> 
A57: Le Moins | C57: =MIN(D4:D53) -> 0 | E57: =MIN(F4:F53) -> 0 | G57: =MIN(G4:G53) -> 0 | H57: =MIN(H4:H53) -> 0
A58: Moyenne | C58: =AVERAGE(D4:D53) ->  | E58: =AVERAGE(F4:F53) ->  | G58: =AVERAGE(G4:G53) ->  | H58: =AVERAGE(H4:H53) ->  | I58: =SUM(H4:H53) -> 0
A59: Cumul | C59: =SUM(D4:D53) -> 0 | E59: =SUM(F4:F53) -> 0 | G59: =SUM(G4:G53) -> 0
A60: Bernard Heck bheck@live.fr 06 41 32 09 56 | C60: Nombre de Restaurant | F60: =COUNTIF(B4:B63,"R *") -> 0 | G60: Nombre de Pique Nique | J60: =COUNTIF(B4:B63,"P *") -> 0
